fUST/lending_fUST_20241020
["ID","MTS","AMOUNT","RATE_DAILY","PERIOD"]
[340520313,1729408437325,273.37336231,9.9e-05,2]
[340520314,1729408445289,273.37336231,9.9e-05,2]
[340520315,1729408453859,273.37336231,9.9e-05,2]
[340520316,1729408462011,273.37336231,9.9e-05,2]
[340520317,1729408470924,273.37336231,9.9e-05,2]
[340520318,1729408479290,273.37336231,9.9e-05,2]
[340520319,1729408487295,273.37336231,9.9e-05,2]
[340520320,1729408495140,273.37336231,9.9e-05,2]
[340520321,1729408503502,273.37336231,9.9e-05,2]
[340520322,1729408512418,273.37336231,9.9e-05,2]
[340520323,1729408522039,273.37336231,9.9e-05,2]
[340520324,1729408529876,273.37336231,9.9e-05,2]
[340520326,1729408538015,273.37336231,9.9e-05,2]
[340520327,1729408545900,273.37336231,9.9e-05,2]
[340520328,1729408556982,273.37336231,9.9e-05,2]
[340520329,1729408566089,273.37336231,9.9e-05,2]
[340520330,1729408574555,273.37336231,9.9e-05,2]
[340520331,1729408583296,273.37336231,9.9e-05,2]
[340520332,1729408591605,273.37336231,9.9e-05,2]
[340520334,1729408599691,273.37336231,9.9e-05,2]
[340520335,1729408608474,273.37336231,9.9e-05,2]
[340520336,1729408616527,273.37336231,9.9e-05,2]
[340520337,1729408619288,5000.0,0.00010403,2]
[340520338,1729408624311,273.37336231,9.9e-05,2]
[340520339,1729408633138,273.37336231,9.9e-05,2]
[340520340,1729408641213,273.37336231,9.9e-05,2]
[340520341,1729408649745,273.37336231,9.9e-05,2]
[340520342,1729408658059,273.37336231,9.9e-05,2]
[340520344,1729408666050,273.37336231,9.9e-05,2]
[340520345,1729408674787,273.37336231,9.9e-05,2]
[340520346,1729408683528,273.37336231,9.9e-05,2]
[340520347,1729408691404,273.37336231,9.9e-05,2]
[340520348,1729408699541,273.37336231,9.9e-05,2]
[340520349,1729408707348,273.37336231,9.9e-05,2]
[340520350,1729408716118,273.37336231,9.9e-05,2]
[340520351,1729408723776,273.37336231,9.9e-05,2]
[340520352,1729408732315,273.37336231,9.9e-05,2]
[340520353,1729408740137,273.37336231,9.9e-05,2]
[340520354,1729408748712,273.37336231,9.9e-05,2]
[340520356,1729408757076,273.37336231,9.9e-05,2]
[340520357,1729408765902,273.37336231,9.9e-05,2]
[340520358,1729408773774,273.37336231,9.9e-05,2]
[340520359,1729408782369,273.37336231,9.9e-05,2]
[340520360,1729408790731,273.37336231,9.9e-05,2]
[340520361,1729408799683,273.37336231,9.9e-05,2]
[340520362,1729408807582,273.37336231,9.9e-05,2]
[340520363,1729408816180,273.37336231,9.9e-05,2]
[340520364,1729408824108,273.37336231,9.9e-05,2]
[340520365,1729408832702,273.37336231,9.9e-05,2]
[340520366,1729408840642,273.37336231,9.9e-05,2]
[340520367,1729408849752,273.37336231,9.9e-05,2]
[340520368,1729408858110,273.37336231,9.9e-05,2]
[340520369,1729408866959,273.37336231,9.9e-05,2]
[340520370,1729408875493,273.37336231,9.9e-05,2]
[340520371,1729408883293,273.37336231,9.9e-05,2]
[340520372,1729408891935,273.37336231,9.9e-05,2]
[340520373,1729408900507,273.37336231,9.9e-05,2]
[340520374,1729408909055,273.37336231,9.9e-05,2]
[340520375,1729408917476,273.37336231,9.9e-05,2]
[340520376,1729408926085,273.37336231,9.9e-05,2]
[340520377,1729408934772,273.37336231,9.9e-05,2]
[340520378,1729408943397,273.37336231,9.9e-05,2]
[340520379,1729408951267,273.37336231,9.9e-05,2]
[340520380,1729408960002,273.37336231,9.9e-05,2]
[340520381,1729408967819,273.37336231,9.9e-05,2]
[340520382,1729408976784,273.37336231,9.9e-05,2]
[340520383,1729408984280,273.37336231,9.9e-05,2]
[340520384,1729408992806,273.37336231,9.9e-05,2]
[340520385,1729409001097,273.37336231,9.9e-05,2]
[340520386,1729409010297,273.37336231,9.9e-05,2]
[340520387,1729409018398,273.37336231,9.9e-05,2]
[340520388,1729409026706,273.37336231,9.9e-05,2]
[340520389,1729409035112,273.37336231,9.9e-05,2]
[340520390,1729409043292,273.37336231,9.9e-05,2]
[340520391,1729409050996,273.37336231,9.9e-05,2]
[340520392,1729409059855,273.37336231,9.9e-05,2]
[340520393,1729409067479,273.37336231,9.9e-05,2]
[340520394,1729409076568,273.37336231,9.9e-05,2]
[340520395,1729409084832,273.37336231,9.9e-05,2]
[340520396,1729409093425,273.37336231,9.9e-05,2]
[340520397,1729409101789,273.37336231,9.9e-05,2]
[340520399,1729409110875,273.37336231,9.9e-05,2]
[340520400,1729409119098,273.37336231,9.9e-05,2]
[340520401,1729409127498,273.37336231,9.9e-05,2]
[340520402,1729409135274,273.37336231,9.9e-05,2]
[340520403,1729409144271,273.37336231,9.9e-05,2]
[340520404,1729409152107,273.37336231,9.9e-05,2]
[340520405,1729409161360,273.37336231,9.9e-05,2]
[340520406,1729409169252,273.37336231,9.9e-05,2]
[340520407,1729409177858,273.37336231,9.9e-05,2]
[340520408,1729409188340,273.37336231,9.9e-05,2]
[340520409,1729409196401,273.37336231,9.9e-05,2]
[340520410,1729409204259,273.37336231,9.9e-05,2]
[340520411,1729409212938,273.37336231,9.9e-05,2]
[340520412,1729409221148,273.37336231,9.9e-05,2]
[340520413,1729409229640,273.37336231,9.9e-05,2]
[340520414,1729409237794,273.37336231,9.9e-05,2]
[340520419,1729409245966,273.37336231,9.9e-05,2]
[340520421,1729409253783,273.37336231,9.9e-05,2]
[340520422,1729409262382,273.37336231,9.9e-05,2]
[340520423,1729409270445,273.37336231,9.9e-05,2]
[340520424,1729409279123,273.37336231,9.9e-05,2]
[340520425,1729409287497,273.37336231,9.9e-05,2]
[340520426,1729409303414,273.37336231,9.9e-05,2]
[340520428,1729409319878,273.37336231,9.9e-05,2]
[340520429,1729409323429,3703.79677056,0.0001,2]
[340520430,1729409335612,273.37336231,9.9e-05,2]
[340520431,1729409351341,273.37336231,9.9e-05,2]
[340520432,1729409367957,273.37336231,9.9e-05,2]
[340520433,1729409383877,273.37336231,9.9e-05,2]
[340520434,1729409399546,273.37336231,9.9e-05,2]
[340520435,1729409415300,273.37336231,9.9e-05,2]
[340520436,1729409430576,273.37336231,9.9e-05,2]
[340520545,1729409446338,-218.95502387,0.00010834,2]
[340520546,1729409446350,-1833.01497613,0.00010934,2]
[340520547,1729409446438,273.37336231,9.9e-05,2]
[340520548,1729409462213,273.37336231,9.9e-05,2]
[340520549,1729409478549,273.37336231,9.9e-05,2]
[340520550,1729409494201,273.37336231,9.9e-05,2]
[340520551,1729409510075,273.37336231,9.9e-05,2]
[340520552,1729409526924,273.37336231,9.9e-05,2]
[340520553,1729409543096,273.37336231,9.9e-05,2]
[340520554,1729409558820,273.37336231,9.9e-05,2]
[340520555,1729409575045,273.37336231,9.9e-05,2]
[340520556,1729409591433,273.37336231,9.9e-05,2]
[340520557,1729409608595,273.37336231,9.9e-05,2]
[340520558,1729409624326,273.37336231,9.9e-05,2]
[340520559,1729409630369,783.3919355,0.00010368,2]
[340520560,1729409641169,273.37336231,9.9e-05,2]
[340520561,1729409656857,273.37336231,9.9e-05,2]
[340520562,1729409663556,2522.0973785,0.00010368,2]
[340520563,1729409672102,273.37336231,9.9e-05,2]
[340520564,1729409688492,273.37336231,9.9e-05,2]
[340520565,1729409704011,273.37336231,9.9e-05,2]
[340520568,1729410013695,3000.0,9.73e-05,2]
[340520569,1729410096964,24900.0,9.749e-05,2]
[340520576,1729410456737,250.0,0.00010249,2]
[340520580,1729410606450,24900.0,0.00010295,2]
[340520581,1729410617570,1216.705693,0.00010294,2]
[340520608,1729410632216,-250.0,0.00010614,2]
[340520610,1729410632227,-250.0,0.00010643,2]
[340520611,1729410632236,-250.0,0.00010673,2]
[340520612,1729410632247,-250.0,0.00010702,2]
[340520614,1729410632257,-250.0,0.00010731,2]
[340520616,1729410632267,-250.0,0.0001076,2]
[340520617,1729410632276,-250.0,0.00010789,2]
[340520618,1729410632287,-250.0,0.00010818,2]
[340520620,1729410632297,-250.0,0.00010847,2]
[340520622,1729410632310,-250.0,0.00010876,2]
[340520623,1729410632321,-250.0,0.00010906,2]
[340520624,1729410632331,-250.0,0.00010935,2]
[340520625,1729410632341,-250.0,0.00010959,2]
[340520626,1729410632352,-250.0,0.00010964,2]
[340520627,1729410632363,-250.0,0.00010993,2]
[340520628,1729410632374,-300.0,0.0001102,2]
[340520629,1729410632385,-300.0,0.0001102,2]
[340520630,1729410632395,-7438.79163186,0.00011021,2]
[340520631,1729410632408,-250.0,0.00011022,2]
[340520632,1729410632419,-250.0,0.00011051,2]
[340520633,1729410632430,-250.0,0.0001108,2]
[340520634,1729410632442,-250.0,0.00011109,2]
[340520635,1729410632454,-250.0,0.00011138,2]
[340520636,1729410632466,-250.0,0.00011168,2]
[340520637,1729410632477,-1482.98840623,0.00011319,2]
[340520663,1729410638638,-5746.7887794,0.00011319,2]
[340520704,1729410643312,-209.01444623,0.00011319,2]
[340520705,1729410643322,-150.0,0.00011952,2]
[340520706,1729410643332,-527.0,0.00011952,2]
[340520707,1729410643343,-1113.98555377,0.00011952,2]
[340520713,1729410646166,-40.01444623,0.00011952,2]
[340520714,1729410646176,-1568.72774334,0.00011952,2]
[340520721,1729410928496,150.89970761,0.0002,120]
[340520723,1729411452844,311.7729963,0.00010135,2]
[340520724,1729411512919,-250.0,0.00010959,2]
[340520725,1729411512943,-158.476299,0.00010982,2]
[340520726,1729411512968,-1051.6742955,0.00010983,2]
[340520727,1729411512991,-158.476299,0.0001103,2]
[340520728,1729411513018,-158.476299,0.00011078,2]
[340520729,1729411513042,-158.476299,0.00011125,2]
[340520730,1729411513067,-158.476299,0.00011173,2]
[340520731,1729411513091,-158.476299,0.00011221,2]
[340520732,1729411513117,-158.476299,0.00011268,2]
[340520733,1729411513143,-158.476299,0.00011316,2]
[340520734,1729411513167,-158.476299,0.00011364,2]
[340520735,1729411513193,-158.476299,0.00011411,2]
[340520736,1729411513218,-158.476299,0.00011459,2]
[340520737,1729411513240,-510.76192887,0.0001147,2]
[340520738,1729411513265,-158.476299,0.00011507,2]
[340520739,1729411513288,-158.476299,0.00011555,2]
[340520740,1729411513313,-150.0,0.00011991,2]
[340520741,1729411513338,-300.0,0.00011999,2]
[340520742,1729411513360,-300.0,0.00011999,2]
[340520743,1729411513383,-875.92,0.00012,2]
[340520744,1729411513406,-500.0,0.00012,2]
[340520745,1729411513428,-500.0,0.00012,2]
[340520746,1729411513453,-172.8389,0.00012,2]
[340520747,1729411513476,-200.9009085,0.00012,3]
[340520748,1729411513500,-467.28809644,0.00012044,2]
[340520749,1729411513522,-150.0,0.00012054,2]
[340520750,1729411513545,-527.0,0.00012054,2]
[340520751,1729411513573,-1154.0,0.00012054,2]
[340520752,1729411513605,-1805.0,0.00012054,2]
[340520753,1729411513629,-150.0,0.000121,2]
[340520754,1729411513656,-788.79828711,0.00012299,2]
[340520755,1729411513684,-5000.0,0.000123,2]
[340520756,1729411513942,-625.0,0.000123,2]
[340520757,1729411513967,-286.69781565,0.00012352,2]
[340520758,1729411513993,-1257.88749361,0.000124,2]
[340520759,1729411514022,-150.01,0.00012428,2]
[340520760,1729411514046,-5123.57632764,0.00012428,2]
[340520761,1729411514069,-568.89830126,0.00012429,2]
[340520762,1729411514096,-14613.16479842,0.00012429,2]
[340520763,1729411514120,-7438.48273215,0.00012429,2]
[340520764,1729411514145,-28733.59350227,0.00012429,2]
[340520765,1729411514170,-193.93528466,0.00012453,2]
[340520766,1729411514193,-354.315,0.00012453,2]
[340520767,1729411514220,-3532.06444092,0.00012463,2]
[340520768,1729411591302,150.0,0.00017306,120]
[340520770,1729411711855,150.0,0.00016583,120]
[340520771,1729411771880,150.0,0.00019054,120]
[340520804,1729411834977,-250.0,0.00010959,2]
[340520806,1729411834987,-258.02803404,0.0001238,2]
[340520807,1729411834997,-150.01,0.00012462,2]
[340520808,1729411835007,-2561.78816382,0.00012462,2]
[340520809,1729411835018,-151.0,0.00012472,2]
[340520810,1729411835027,-239.28578,0.00012472,2]
[340520811,1729411835037,-300.0,0.00012472,2]
[340520812,1729411835047,-300.0,0.00012472,2]
[340520813,1729411835057,-500.0,0.00012473,2]
[340520814,1729411835067,-500.0,0.00012473,2]
[340520815,1729411835077,-363.56265211,0.00012473,2]
[340520816,1729411835088,-25.75120804,0.00012473,2]
[340520817,1729411835099,-344.50092228,0.00012473,2]
[340520818,1729411835110,-165.60868211,0.00012473,2]
[340520819,1729411835120,-500.0,0.00012473,2]
[340520820,1729411835129,-500.0,0.00012473,2]
[340520821,1729411835139,-170.74295316,0.00012473,2]
[340520822,1729411835159,-385.50223271,0.00012473,2]
[340520823,1729411835168,-500.0,0.00012473,2]
[340520824,1729411835177,-45.88174275,0.00012473,2]
[340520904,1729412262251,4347.91222648,0.0001,2]
[340520982,1729413038596,-300.0,0.00010958,2]
[340520983,1729413038606,-300.0,0.00010958,2]
[340520984,1729413038616,-424.0,0.00010959,2]
[340520985,1729413038625,-648.91,0.00010959,2]
[340520986,1729413038634,-540.76,0.00010959,2]
[340520987,1729413038644,-450.63,0.00010959,2]
[340520988,1729413038653,-375.53,0.00010959,2]
[340520989,1729413038663,-312.94,0.00010959,2]
[340520990,1729413038672,-260.78,0.00010959,2]
[340520991,1729413038682,-217.32,0.00010959,2]
[340520992,1729413038691,-181.1,0.00010959,2]
[340520993,1729413038703,-150.91,0.00010959,2]
[340520994,1729413038714,-754.6,0.00010959,2]
[340520995,1729413038724,-250.0,0.00010959,2]
[340520996,1729413038734,-420.0,0.00012042,2]
[340520997,1729413038746,-420.0,0.00012054,2]
[340520998,1729413038755,-526.048,0.00012084,2]
[340520999,1729413038765,-1805.0,0.00012084,2]
[340521000,1729413038774,-150.0,0.000121,2]
[340521001,1729413038785,-825.32623705,0.0001228,2]
[340521002,1729413038795,-1000.0,0.00012292,2]
[340521003,1729413038805,-1000.0,0.00012309,2]
[340521004,1729413038815,-1000.0,0.00012314,2]
[340521005,1729413038825,-379.26553418,0.0001235,2]
[340521006,1729413038834,-4424.983291,0.0001235,2]
[340521039,1729413044429,-1154.0,0.00012084,2]
[340521041,1729413044438,-12902.7038344,0.0001235,2]
[340521043,1729413044448,-32758.3614679,0.0001235,2]
[340521045,1729413044457,-232.22523069,0.0001235,2]
[340521047,1729413044467,-745.19903,0.0001235,2]
[340521049,1729413044476,-1061.72859583,0.00012372,2]
[340521051,1729413044485,-1034.33652627,0.0001238,2]
[340521053,1729413044494,-151.0,0.000124,2]
[340521057,1729413044505,-214.0498737,0.000124,4]
[340521060,1729413044515,-1132.09874424,0.000124,2]
[340521062,1729413044525,-157.016239,0.0001245,2]
[340521064,1729413044535,-151.0,0.0001245,2]
[340521066,1729413044545,-151.0,0.0001245,2]
[340521067,1729413044554,-151.0,0.0001245,2]
[340521068,1729413044564,-151.0,0.0001245,2]
[340521069,1729413044575,-151.0,0.0001245,2]
[340521070,1729413044584,-151.0,0.0001245,2]
[340521071,1729413044594,-1854.092873,0.0001245,2]
[340521072,1729413044603,-151.0,0.0001245,2]
[340521073,1729413044613,-1854.092873,0.0001245,2]
[340521074,1729413044623,-745.19903,0.0001245,2]
[340521075,1729413044632,-21067.345338,0.0001245,2]
[340521076,1729413044644,-15102.22494193,0.0001245,2]
[340521082,1729413046495,-23474.63765017,0.0001245,2]
[340521083,1729413046504,-4573.7647445,0.0001245,2]
[340521084,1729413046514,-29822.103965,0.00012451,2]
[340521085,1729413046527,-2286.88237225,0.00012451,2]
[340521086,1729413046538,-151.0,0.00012451,2]
[340521087,1729413046547,-154.283613,0.00012451,2]
[340521088,1729413046556,-151.0,0.00012451,2]
[340521089,1729413046565,-151.0,0.00012451,2]
[340521090,1729413046574,-151.0,0.00012451,2]
[340521091,1729413046583,-284.009342,0.00012451,2]
[340521092,1729413046593,-1854.092873,0.00012451,2]
[340521093,1729413046603,-1854.092873,0.00012451,2]
[340521094,1729413046612,-1854.092873,0.00012451,2]
[340521095,1729413046621,-151.0,0.00012451,2]
[340521096,1729413046634,-1854.092873,0.00012451,2]
[340521097,1729413046644,-151.0,0.00012451,2]
[340521098,1729413046656,-745.19903,0.00012451,2]
[340521099,1729413046665,-745.19903,0.00012451,2]
[340521100,1729413046674,-11847.64742312,0.00012451,2]
[340521101,1729413095164,199.0,0.00010403,2]
[340521104,1729413542488,-427.51,0.00011473,2]
[340521105,1729413542511,-555.14,0.00011473,2]
[340521106,1729413542533,-150.0,0.000121,2]
[340521107,1729413542562,-209.00270763,0.0001234,2]
[340521108,1729413542584,-151.0,0.0001235,2]
[340521109,1729413542609,-232.98298295,0.0001235,2]
[340521110,1729413542632,-1018.88886987,0.0001236,2]
[340521111,1729413542655,-300.0,0.00012439,2]
[340521112,1729413542681,-6345.47543955,0.0001244,2]
[340521277,1729414238845,-250.0,0.00010959,2]
[340521278,1729414238856,-171.403828,0.00011527,2]
[340521279,1729414238867,-17.11342847,0.00012014,2]
[340521290,1729414240624,-448.00097635,0.00012014,2]
[340521291,1729414240636,-150.0,0.000121,2]
[340521292,1729414240646,-1130.004,0.00012112,2]
[340521293,1729414240655,-759.49502365,0.00012112,2]
[340521346,1729415350553,222.74963481,0.0001,2]
[340521446,1729415438136,-184.29,0.00010959,2]
[340521449,1729415438153,-250.0,0.00010959,2]
[340521451,1729415438168,-1239.8078002,0.00011189,2]
[340521454,1729415438183,-171.403828,0.00011246,2]
[340521456,1729415438196,-150.0,0.000121,2]
[340521458,1729415438210,-1263.08,0.00012112,2]
[340521461,1729415438224,-916.99998282,0.00012321,2]
[340521463,1729415438238,-300.0,0.00012375,2]
[340521466,1729415438252,-300.0,0.00012375,2]
[340521468,1729415438266,-5141.11040257,0.00012376,2]
[340521470,1729415438279,-252.84368945,0.000124,2]
[340521473,1729415438293,-22818.00674942,0.000124,2]
[340521481,1729415438358,-39175.04734908,0.000124,2]
[340521483,1729415438371,-17358.78840974,0.00012401,2]
[340521571,1729415439941,-3383.19517175,0.00012401,2]
[340521572,1729415439965,-3239.1,0.00012401,2]
[340521578,1729415442878,-528.89930231,0.00012401,2]
[340529137,1729416175118,-150.0,0.0002158,120]
[340529138,1729416175163,-150.0,0.00022525,120]
[340529139,1729416175202,-150.0,0.00023146,120]
[340529140,1729416175244,-1000.0,0.00024,120]
[340529141,1729416175286,-150.0,0.00024932,120]
[340530033,1729416525849,17492.73848636,0.0001,2]
[340530036,1729416564092,-250.0,0.00010959,2]
[340530037,1729416564115,-300.0,0.00010982,2]
[340530038,1729416564136,-300.0,0.00010982,2]
[340530039,1729416564158,-7118.58179278,0.00010983,2]
[340530060,1729416638163,-517.79970858,0.00010983,2]
[340530061,1729416638333,-7949.68969884,0.00010983,2]
[340530062,1729416638343,-300.0,0.00011103,2]
[340530063,1729416638353,-300.0,0.00011103,2]
[340530064,1729416638363,-3000.0,0.00011104,2]
[340530065,1729416638373,-150.0,0.0001122,2]
[340530066,1729416638382,-1429.1481958,0.0001178,2]
[340530067,1729416638392,-600.0,0.00011974,2]
[340530068,1729416638401,-465.00572024,0.00011983,2]
[340530069,1729416638411,-603.96661481,0.00012099,2]
[340530070,1729416638420,-420.0,0.00012199,2]
[340530072,1729416638430,-420.0,0.00012213,2]
[340530073,1729416638439,-1429.1481958,0.0001228,2]
[340530074,1729416638448,-96.14720261,0.000123,2]
[340530075,1729416638461,-3903.85279739,0.000123,2]
[340530076,1729416638471,-214.01247486,0.000123,2]
[340530077,1729416638480,-168.56245963,0.0001237,2]
[340530078,1729416638491,-26468.9363699,0.0001237,2]
[340530079,1729416638503,-151.0,0.0001237,2]
[340530080,1729416638513,-151.0,0.0001237,2]
[340530081,1729416638523,-151.0,0.0001237,2]
[340530082,1729416638533,-151.0,0.0001237,2]
[340530083,1729416638542,-683.222954,0.0001237,2]
[340530084,1729416638555,-683.222954,0.0001237,2]
[340530085,1729416638565,-4275.80786095,0.0001237,2]
[340530091,1729416639991,-3079.17994982,0.0001237,2]
[340530092,1729416640051,-2703.01236383,0.0001237,2]
[340530096,1729416643118,-267.01,0.0001237,2]
[340530097,1729416646258,-8282.93211464,0.0001237,2]
[340530098,1729416646268,-4247.7747618,0.0001237,2]
[340530099,1729416646290,-3329.3029787,0.0001237,2]
[340530114,1729417595148,-160.7142874,0.00010473,2]
[340530115,1729417595169,-250.0,0.00010676,2]
[340530116,1729417595189,-201.98842544,0.00010859,2]
[340530117,1729417595210,-1208.03271889,0.00010921,2]
[340530118,1729417595231,-300.0,0.00010921,2]
[340530119,1729417595252,-300.0,0.00010921,2]
[340530120,1729417595272,-4888.85388817,0.00010922,2]
[340530168,1729417832302,-300.0,0.00010921,2]
[340530169,1729417832313,-300.0,0.00010921,2]
[340530171,1729417832323,-20011.14611183,0.00010922,2]
[340530172,1729417832332,-250.0,0.00010959,2]
[340530173,1729417832342,-354.43,0.00010959,2]
[340530174,1729417832351,-857.4889176,0.0001178,2]
[340530175,1729417832360,-420.0,0.00012002,2]
[340530176,1729417832370,-420.0,0.00012013,2]
[340530177,1729417832380,-1384.05127017,0.0001225,2]
[340530178,1729417832389,-7281.69732151,0.00012266,2]
[340530179,1729417832401,-327.74212331,0.00012266,2]
[340530180,1729417832411,-825.29998461,0.0001227,2]
[340530181,1729417832422,-857.4889176,0.0001228,2]
[340530182,1729417832431,-9303.97114462,0.0001234,2]
[340530183,1729417832440,-9579.89720725,0.0001234,2]
[340530184,1729417832454,-14198.62949521,0.0001234,2]
[340530195,1729417838401,-1551.13000235,0.0001234,2]
[340530207,1729417840258,-427.63664462,0.0001234,2]
[340530213,1729417843465,-812.1765911,0.0001234,2]
[340530220,1729417846231,-47775.43705247,0.0001234,2]
[340530221,1729417846241,-47351.79636805,0.0001235,2]
[340530222,1729417846251,-151.0,0.0001235,2]
[340530223,1729417846261,-151.0,0.0001235,2]
[340530224,1729417846270,-151.0,0.0001235,2]
[340530225,1729417846285,-151.0,0.0001235,2]
[340530226,1729417846296,-151.0,0.0001235,2]
[340530227,1729417846306,-151.0,0.0001235,2]
[340530228,1729417846316,-151.0,0.0001235,2]
[340530229,1729417846327,-151.0,0.0001235,2]
[340530230,1729417846337,-151.0,0.0001235,2]
[340530231,1729417846349,-151.0,0.0001235,2]
[340530232,1729417846359,-151.0,0.0001235,2]
[340530233,1729417846369,-818.083388,0.0001235,2]
[340530234,1729417846379,-818.083388,0.0001235,2]
[340530235,1729417846390,-818.083388,0.0001235,2]
[340530236,1729417846402,-707.5715096,0.0001235,2]
[340530239,1729418194971,182.55,0.00025,60]
[340530263,1729418785320,189.74010973,0.00025,60]
[340530294,1729419032512,-250.0,0.00010959,2]
[340530295,1729419032523,-5960.1095933,0.00011017,2]
[340530296,1729419032535,-165.612748,0.00011087,2]
[340530297,1729419032547,-888.9148655,0.00011088,2]
[340530298,1729419032557,-150.04692229,0.0001168,2]
[340530299,1729419032567,-514.4933504,0.0001178,2]
[340530300,1729419032578,-465.00028602,0.00011953,2]
[340530301,1729419032588,-874.73838463,0.0001221,2]
[340530302,1729419032599,-222.7186948,0.0001221,2]
[340530303,1729419032608,-300.0,0.00012212,2]
[340530304,1729419032617,-300.0,0.00012212,2]
[340530305,1729419032627,-874.73838461,0.00012213,2]
[340530306,1729419032638,-874.73838461,0.00012215,2]
[340530307,1729419032648,-874.73838461,0.00012218,2]
[340530308,1729419032659,-874.73838461,0.0001222,2]
[340530309,1729419032670,-742.76998614,0.0001223,2]
[340530310,1729419032680,-514.4933504,0.0001228,2]
[340530311,1729419032690,-610.31,0.000123,2]
[340530312,1729419032703,-499.67621178,0.0001231,2]
[340530313,1729419032714,-1175.09813982,0.00012311,2]
[340530335,1729419040386,-3302.07897482,0.00012311,2]
[340530336,1729419040414,-10934.33939481,0.00012311,2]
[340530337,1729419040440,-37173.25611225,0.00012311,2]
[340530338,1729419040451,-118108.50489,0.00012311,2]
[340530339,1729419040462,-52584.7726217,0.0001232,2]
[340530340,1729419040476,-26682.09750865,0.0001232,2]
[340530347,1729419043556,-3650.64627821,0.0001232,2]
[340530348,1729419043647,-19148.3210841,0.0001232,2]
[340530367,1729419046426,-818.371657,0.0001232,2]
[340530368,1729419046436,-6297.25733651,0.0001232,2]
[340530369,1729419046461,-487.1919645,0.0001232,2]
[340530371,1729419046694,-3191.39570742,0.0001232,2]
[340530372,1729419252078,-1126.2,0.00016,30]
[340530373,1729419252155,-250401.66811803,0.00022,30]
[340530374,1729419252204,-525.44381052,0.00026137,120]
[340530375,1729419252251,-164.59,0.000266,31]
[340530376,1729419252293,-5000.0,0.00027,30]
[340530377,1729419252336,-5000.0,0.00027,30]
[340530378,1729419252384,-723.0,0.00027,60]
[340530379,1729419252427,-1000.0,0.00027,120]
[340530380,1729419252472,-500.0,0.00027,60]
[340530381,1729419252514,-500.0,0.00027,60]
[340530382,1729419252557,-500.0,0.00027,60]
[340530383,1729419252600,-500.0,0.00027,60]
[340530384,1729419252643,-500.0,0.00027,60]
[340530385,1729419252685,-500.0,0.00027,30]
[340530386,1729419252728,-500.0,0.00027,60]
[340530387,1729419252772,-500.0,0.00027,60]
[340530388,1729419252814,-500.0,0.00027,60]
[340530389,1729419252856,-500.0,0.00027,60]
[340530390,1729419252899,-500.0,0.00027,60]
[340530391,1729419252943,-500.0,0.00027,60]
[340530392,1729419252987,-500.0,0.00027,60]
[340530393,1729419253033,-507.72367103,0.00027,60]
[340530394,1729419253079,-500.0,0.00027,60]
[340530395,1729419253124,-500.0,0.00027,60]
[340530396,1729419253170,-500.0,0.00027,60]
[340530397,1729419253214,-500.0,0.00027,60]
[340530398,1729419253258,-500.0,0.00027,60]
[340530399,1729419253301,-520.17953841,0.00027,60]
[340530400,1729419253344,-500.0,0.00027,60]
[340530401,1729419253385,-180.36091777,0.00027,60]
[340530402,1729419253429,-500.0,0.00027,60]
[340530403,1729419253474,-500.0,0.00027,60]
[340530404,1729419253519,-500.0,0.00027,60]
[340530405,1729419253799,-500.0,0.00027,60]
[340530406,1729419253844,-500.0,0.00027,60]
[340530407,1729419253885,-500.0,0.00027,60]
[340530408,1729419253933,-500.0,0.00027,60]
[340530409,1729419253974,-500.0,0.00027,60]
[340530410,1729419254015,-500.0,0.00027,60]